bitfinex/quotes_SOLUSD_20240620
["timestamp","ask_amount","ask_price","bid_price","bid_amount"]
[1718858507897,16.1917,134.14,134.12,7.4558]
[1718858508097,16.1917,134.14,134.11,7.4563]
[1718858508708,16.1917,134.14,134.1,7.457]
[1718858509314,23.6467,134.14,134.09,7.4575]
[1718858510210,16.1917,134.14,134.1,7.4567]
[1718858513422,13.8177,134.16,134.08,18.6452]
[1718858513632,6.3637,134.16,134.12,7.4556]
[1718858514007,6.3637,134.16,134.13,7.4553]
[1718858514514,6.3637,134.16,134.12,7.4557]
[1718858517116,6.3637,134.16,134.07,16.5172]
[1718858517327,7.4547,134.15,134.11,7.4565]
[1718858517822,13.8177,134.16,134.11,7.4565]
[1718858520026,13.8177,134.16,134.12,7.4559]
[1718858521121,6.3637,134.16,134.12,7.4559]
[1718858521323,7.4552,134.14,134.09,7.4573]
[1718858521628,7.9645,134.15,134.1,7.457]
[1718858521828,0.17,134.14,134.1,7.457]
[1718858522216,7.6249,134.14,134.1,7.457]
[1718858524731,0.17,134.14,134.1,7.457]
[1718858525235,6.5337,134.16,134.04,53.7713]
[1718858525411,6.3637,134.16,134.06,0.17]
[1718858525823,6.3637,134.16,134.13,7.4553]
[1718858530740,15.1569,134.17,134.14,7.4548]
[1718858530925,16.6412,134.21,134.13,18.6374]
[1718858531126,16.6412,134.21,134.17,7.4529]
[1718858531519,24.0922,134.21,134.16,7.4535]
[1718858531919,7.4519,134.2,134.15,7.4541]
[1718858532225,7.4519,134.2,134.16,7.4536]
[1718858532628,7.4519,134.2,134.15,7.4541]
[1718858534143,7.4519,134.2,134.16,7.4536]
[1718858534345,24.0924,134.21,134.16,7.4536]
[1718858535243,0.17,134.2,134.13,18.6374]
[1718858535447,0.68,134.2,134.13,18.6374]
[1718858535941,7.4537,134.17,134.12,7.4556]
[1718858536247,8.1329,134.18,134.13,7.4553]
[1718858536435,7.4532,134.17,134.12,7.4558]
[1718858536834,7.4532,134.17,134.13,7.4553]
[1718858538148,7.4532,134.17,134.12,7.4557]
[1718858540851,7.4532,134.17,134.13,7.4553]
[1718858541265,7.4532,134.17,134.12,7.4557]
[1718858541547,7.454,134.16,134.11,7.4563]
[1718858542341,7.454,134.16,134.12,7.4559]
[1718858543541,7.49,134.14,134.11,7.4563]
[1718858545249,7.49,134.14,134.12,7.4556]
[1718858547954,7.4535,134.17,134.12,7.4556]
[1718858548138,7.49,134.14,134.12,7.4556]
[1718858549039,7.49,134.14,134.13,7.4554]
[1718858549355,7.49,134.15,134.13,7.4554]
[1718858550956,7.49,134.15,134.12,7.4557]
[1718858551169,14.9457,134.13,134.05,15.8082]
[1718858551460,7.49,134.1,134.07,7.4585]
[1718858551636,7.49,134.1,134.06,7.4591]
[1718858551947,7.49,134.1,134.07,7.4586]
[1718858552750,7.49,134.1,134.08,7.4582]
[1718858553258,7.49,134.11,134.08,7.4582]
[1718858555833,7.49,134.11,134.04,24.9336]
[1718858556033,7.49,134.11,134.08,7.4578]
[1718858556642,7.49,134.09,134.02,34.4612]
[1718858556844,7.49,134.09,134.06,7.4593]
[1718858557050,7.49,134.09,134.03,20.0]
[1718858557238,0.17,134.1,134.06,7.459]
[1718858557445,7.49,134.08,134.06,7.459]
[1718858558040,7.49,134.08,134.03,20.0]
[1718858558041,7.49,134.08,134.05,7.4598]
[1718858558334,22.908,134.09,134.04,7.4603]
[1718858558643,7.49,134.07,134.05,7.4598]
[1718858558850,15.4502,134.09,134.05,7.4598]
[1718858559040,7.49,134.07,134.05,7.4598]
[1718858560347,7.49,134.08,134.06,7.4593]
[1718858562463,15.4502,134.09,134.06,7.4593]
[1718858562755,7.49,134.08,134.06,7.4593]
[1718858563156,15.4502,134.09,134.06,7.4593]
[1718858563355,7.49,134.08,134.06,7.4593]
[1718858563858,7.49,134.08,134.05,7.4596]
[1718858564663,7.49,134.07,134.05,7.4596]
[1718858565040,7.49,134.07,134.04,7.4602]
[1718858565654,22.9081,134.09,134.03,7.4609]
[1718858565655,7.49,134.06,134.03,7.4609]
[1718858565855,7.49,134.04,133.99,33.7974]
[1718858566164,7.49,134.04,134.01,7.4617]
[1718858566743,7.49,134.04,133.99,18.6568]
[1718858566744,7.49,134.04,134.02,7.4614]
[1718858567262,7.49,134.05,134.02,7.4614]
[1718858567959,7.49,134.04,134.02,7.4614]
[1718858568866,7.49,134.04,134.03,7.461]
[1718858569045,7.49,134.05,134.03,7.461]
[1718858570153,7.49,134.05,133.99,18.6568]
[1718858570154,7.49,134.05,134.02,7.4614]
[1718858570356,7.49,134.04,134.02,7.4614]
[1718858570559,7.49,134.04,133.99,18.6568]
[1718858570795,7.49,134.04,133.99,26.1468]
[1718858572255,7.49,134.04,134.02,7.4613]
[1718858572756,7.49,134.04,134.01,7.4618]
[1718858573150,7.49,134.04,134.0,7.4625]
[1718858573350,7.49,134.03,134.0,7.4625]
[1718858574080,7.49,134.03,134.01,7.4619]
[1718858574675,7.49,134.04,134.01,7.4619]
[1718858575365,6.49,134.04,134.02,7.4615]
[1718858576877,6.2465,134.07,133.99,26.1467]
[1718858577083,7.49,134.06,134.03,7.4605]
[1718858577666,7.49,134.05,134.04,7.4604]
[1718858577875,22.9078,134.09,134.05,7.4593]
[1718858578084,7.49,134.07,134.04,7.4602]
[1718858578315,7.49,134.08,134.04,7.4602]
[1718858578592,7.49,134.07,134.04,7.4602]
[1718858578956,22.9078,134.09,134.05,7.4598]
[1718858578957,15.4502,134.09,134.05,7.4598]
[1718858579159,15.4502,134.09,134.02,26.1428]
[1718858579160,7.49,134.08,134.02,41.69]
[1718858579358,7.49,134.08,134.05,7.4594]
[1718858579788,15.4502,134.09,134.05,7.4594]
[1718858579992,7.49,134.08,134.05,7.4594]
[1718858580473,7.49,134.08,134.04,7.4602]
[1718858580674,7.49,134.07,134.03,7.4609]
[1718858580867,7.49,134.07,134.04,7.4603]
[1718858583973,14.9501,134.05,134.0,7.4624]
[1718858584176,7.49,134.03,133.98,23.3075]
[1718858584378,7.49,134.03,134.0,7.4623]
[1718858584771,7.4595,134.06,134.01,7.4621]
[1718858584972,7.49,134.04,134.02,7.4614]
[1718858585176,6.3263,134.07,134.0,7.49]
[1718858585485,7.49,134.06,134.03,7.4608]
[1718858586379,22.9079,134.09,134.04,7.4602]
[1718858586684,7.49,134.06,134.04,7.4602]
[1718858588189,7.49,134.05,133.99,26.148]
[1718858588374,7.49,134.04,134.02,7.4612]
[1718858588576,7.49,134.05,134.02,7.4612]
[1718858588887,0.17,134.08,134.05,7.4596]
[1718858589066,7.49,134.06,134.03,7.4608]
[1718858589270,7.49,134.05,134.03,7.4608]
[1718858589672,7.49,134.05,134.02,7.4613]
[1718858589878,7.4588,134.07,134.02,7.4613]
[1718858590064,7.49,134.05,134.02,7.4613]
[1718858590700,7.49,134.05,134.03,7.461]
[1718858591181,7.4563,134.12,134.07,7.4583]
[1718858591381,7.49,134.1,134.07,7.4583]
[1718858591786,7.49,134.1,134.06,7.4591]
[1718858592375,7.49,134.09,134.06,7.4591]
[1718858592684,7.49,134.09,134.0,37.3118]
[1718858592685,7.4608,134.04,133.99,7.4628]
[1718858592892,7.49,134.01,133.99,7.4628]
[1718858593588,7.49,134.01,134.0,7.4626]
[1718858596876,7.49,134.02,134.0,7.4626]
[1718858597375,0.17,134.04,133.95,21.494]
[1718858597596,7.49,134.01,133.95,28.984]
[1718858597796,7.49,134.01,133.99,7.4632]
[1718858598299,8.1407,134.04,133.93,55.9983]
[1718858598300,7.49,134.0,133.93,55.9983]
[1718858598491,7.49,134.0,133.97,7.4643]
[1718858599076,7.49,133.99,133.97,7.4643]
[1718858599374,7.49,133.99,133.94,7.49]
[1718858599579,7.49,133.99,133.92,22.4636]
[1718858599781,7.49,133.99,133.96,7.4648]
[1718858600297,23.9764,134.02,133.97,7.4642]
[1718858600491,7.49,133.99,133.97,7.4642]
[1718858600695,7.49,134.0,133.97,7.4642]
[1718858602204,7.49,134.0,133.98,7.4637]
[1718858602879,7.49,134.0,133.97,7.464]
[1718858604299,16.5147,134.02,133.96,18.662]
[1718858604491,7.4605,134.04,133.99,7.463]
[1718858604692,7.49,134.03,133.99,7.463]
[1718858604885,7.49,134.02,133.99,7.4627]
[1718858605204,7.49,134.02,133.98,7.4635]
[1718858605784,7.4612,134.03,133.98,7.4635]
[1718858605980,7.49,134.02,133.98,7.4635]
[1718858606611,7.49,134.01,133.98,7.4635]
[1718858607199,7.49,133.99,133.92,22.4636]
[1718858607381,7.49,133.98,133.93,20.0]
[1718858608090,7.49,133.98,133.97,7.4643]
[1718858608403,7.49,133.99,133.97,7.4643]
[1718858608603,0.34,134.04,133.97,7.4643]
[1718858608784,7.49,133.99,133.97,7.4643]
[1718858609104,0.17,134.02,133.97,7.4643]
[1718858609290,7.49,133.99,133.97,7.4643]
[1718858610704,7.6317,134.02,133.97,7.4643]
[1718858610905,7.49,133.99,133.97,7.4643]
[1718858612405,7.6317,134.02,133.97,7.4643]
[1718858612582,7.49,133.99,133.97,7.4643]
[1718858616107,7.49,133.99,133.98,7.4638]
[1718858616687,7.49,134.0,133.98,7.4638]
[1718858617691,7.49,133.99,133.98,7.4638]
[1718858618794,7.49,133.99,133.94,18.6639]
[1718858618999,7.49,133.99,133.97,7.464]
[1718858620313,7.49,133.98,133.93,20.0]
[1718858620492,7.49,133.98,133.95,7.4652]
[1718858620692,7.49,133.97,133.89,22.9521]
[1718858620921,7.49,133.96,133.93,7.4662]
[1718858621702,7.49,133.96,133.92,7.467]
[1718858621893,7.49,133.95,133.92,7.467]
[1718858622511,7.4646,133.97,133.92,7.467]
[1718858622710,7.4646,133.97,133.93,7.4664]
[1718858623024,37.7639,133.98,133.93,7.4664]
[1718858623376,14.9549,133.96,133.92,7.467]
[1718858623491,7.49,133.94,133.9,7.4679]
[1718858623691,7.49,133.94,133.91,7.4675]
[1718858625616,7.4651,133.96,133.91,7.4675]
[1718858625823,7.49,133.94,133.92,7.4671]
[1718858628250,7.49,133.94,133.91,7.4674]
[1718858629226,7.49,133.93,133.87,7.49]
[1718858629428,7.49,133.94,133.91,7.4673]
[1718858629744,7.49,133.94,133.9,7.468]
[1718858631163,7.49,133.93,133.9,7.468]
[1718858631349,7.49,133.92,133.89,7.4686]
[1718858632025,7.49,133.92,133.9,7.4682]
[1718858632819,7.466,133.94,133.9,7.4682]
[1718858633035,7.49,133.92,133.9,7.4682]
[1718858633239,7.49,133.93,133.9,7.4682]
[1718858633745,7.49,133.93,133.9,7.4679]
[1718858634452,7.49,133.92,133.9,7.4679]
[1718858635147,7.49,133.92,133.89,7.4686]
[1718858635348,7.49,133.92,133.9,7.4682]
[1718858636546,7.49,133.91,133.86,15.1678]
[1718858636749,7.49,133.91,133.88,7.469]
[1718858636930,7.49,133.91,133.89,7.4687]
[1718858637127,7.49,133.91,133.88,7.4691]
[1718858637337,22.8541,133.94,133.89,7.4686]
[1718858637338,23.824,133.94,133.89,7.4686]
[1718858637545,7.49,133.92,133.89,7.4686]
[1718858637723,7.49,133.92,133.9,7.4681]
[1718858637926,16.1878,133.94,133.9,7.4681]
[1718858638138,7.49,133.92,133.9,7.4681]
[1718858638547,16.1878,133.94,133.9,7.4681]
[1718858639048,16.1878,133.94,133.89,7.4686]
[1718858639049,7.49,133.92,133.89,7.4686]
[1718858639736,0.17,133.93,133.85,7.49]
[1718858639945,14.9577,133.91,133.86,7.4703]
[1718858640149,7.4688,133.89,133.84,7.4714]
[1718858640348,7.4688,133.89,133.82,21.5152]
[1718858640349,7.49,133.88,133.83,7.49]
[1718858640526,7.49,133.88,133.85,7.471]
[1718858640730,7.49,133.88,133.82,21.5152]
[1718858640952,7.49,133.88,133.84,7.4714]
[1718858641247,22.6016,133.88,133.83,7.4721]
[1718858641432,7.49,133.86,133.83,7.4721]
[1718858641937,7.49,133.86,133.81,18.6823]
[1718858642136,7.49,133.86,133.83,7.4719]
[1718858642341,7.49,133.85,133.82,7.4726]
[1718858642551,7.4723,133.83,133.78,29.115]
[1718858642731,7.4723,133.83,133.71,637.7014102]
[1718858642732,7.49,133.82,133.74,60.4566]
[1718858642934,6.4002,133.85,133.74,60.4566]
[1718858643142,0.17,133.84,133.78,18.6871]
[1718858643333,7.49,133.83,133.8,7.4738]
[1718858643643,7.49,133.82,133.79,7.4741]
[1718858643834,8.1517,133.84,133.8,7.4737]
[1718858643835,7.49,133.83,133.8,7.4737]
[1718858644035,0.68,133.84,133.8,7.4737]
[1718858644241,7.49,133.83,133.8,7.4737]
[1718858644547,7.49,133.83,133.76,18.69]
[1718858644548,7.49,133.83,133.79,7.474]
[1718858644752,7.49,133.8,133.77,7.4755]
[1718858644950,7.49,133.8,133.76,7.4759]
[1718858645144,7.49,133.78,133.74,7.4767]
[1718858645338,7.49,133.78,133.73,7.49]
[1718858645339,7.49,133.77,133.73,7.4775]
[1718858645541,7.49,133.77,133.72,7.49]
[1718858645739,7.49,133.78,133.75,7.4765]
[1718858645957,7.49,133.78,133.74,7.4769]
[1718858646152,7.49,133.78,133.75,7.4766]
[1718858646846,7.49,133.78,133.74,7.4771]
[1718858647045,7.6449,133.79,133.74,7.4771]
[1718858647249,7.49,133.78,133.71,40.0348]
[1718858647449,7.49,133.78,133.74,7.4771]
[1718858647655,7.83,133.77,133.73,7.4776]
[1718858648058,7.6442,133.8,133.73,7.49]
[1718858648262,7.6442,133.8,133.74,7.49]
[1718858648263,7.83,133.79,133.74,7.49]
[1718858648545,7.83,133.79,133.75,7.4763]
[1718858649252,15.3044,133.79,133.75,7.4763]
[1718858649450,0.34,133.79,133.75,7.4763]
[1718858649650,7.83,133.79,133.75,7.4763]
[1718858650659,15.3168,133.81,133.72,0.17]
[1718858650954,7.49,133.8,133.74,18.6917]
[1718858651156,7.49,133.79,133.75,7.4763]
[1718858651372,14.9638,133.8,133.75,7.4763]
[1718858651663,7.49,133.79,133.75,7.4764]
[1718858652051,7.49,133.8,133.77,7.4754]
[1718858652358,7.4723,133.83,133.78,7.4749]
[1718858652556,7.49,133.82,133.78,7.4749]
[1718858652861,7.49,133.83,133.79,7.4741]
[1718858653050,7.49,133.82,133.79,7.4741]
[1718858653253,7.49,133.81,133.77,7.475]
[1718858653650,7.49,133.8,133.77,7.475]
[1718858655458,7.4722,133.83,133.75,7.49]
[1718858655660,0.17,133.83,133.75,7.49]
[1718858655852,0.68,133.83,133.79,7.4742]
[1718858656051,8.1522,133.83,133.78,7.4747]
[1718858656246,7.4727,133.82,133.77,7.4753]
[1718858656446,7.49,133.8,133.78,7.4748]
[1718858656864,7.49,133.81,133.79,7.4742]
[1718858657047,22.5255,133.85,133.81,7.473]
[1718858657243,7.49,133.82,133.8,7.4736]
[1718858657943,7.49,133.82,133.79,7.4741]
[1718858658259,7.49,133.8,133.77,7.4752]
[1718858658460,7.49,133.8,133.78,7.4749]
[1718858658663,7.49,133.81,133.78,7.4749]
[1718858659262,7.49,133.81,133.77,7.4753]
[1718858659846,7.49,133.8,133.77,7.4753]
[1718858660453,7.49,133.8,133.78,7.4748]
[1718858660865,0.17,133.83,133.76,7.476]
[1718858661051,7.49,133.79,133.76,7.476]
[1718858661464,7.49,133.79,133.77,7.4753]
[1718858663060,7.4718,133.84,133.77,7.49]
[1718858663374,7.49,133.81,133.78,7.4746]
[1718858663568,7.49,133.81,133.77,7.4752]
[1718858663865,7.4746,133.79,133.72,20.0]
[1718858664066,7.49,133.78,133.74,7.4768]
[1718858664268,7.49,133.77,133.74,7.4768]
[1718858664765,7.49,133.77,133.76,7.476]
[1718858664956,7.49,133.77,133.75,7.4764]
[1718858665553,15.1497,133.8,133.76,7.4755]
[1718858665750,22.6397,133.8,133.76,7.4755]
[1718858665963,22.6397,133.8,133.75,7.4764]
[1718858665964,30.1135,133.8,133.75,7.4764]
[1718858666364,7.49,133.79,133.75,7.4764]
[1718858666963,7.49,133.79,133.76,7.4759]
[1718858667170,22.6397,133.8,133.77,7.4754]
[1718858667354,22.6397,133.8,133.76,7.4758]
[1718858667560,7.49,133.79,133.76,7.4758]
[1718858667763,7.49,133.79,133.75,7.4764]
[1718858668082,7.49,133.78,133.74,7.477]
[1718858668248,7.49,133.78,133.75,7.4766]
[1718858668655,7.49,133.79,133.75,7.4766]
[1718858670065,7.49,133.79,133.75,7.4763]
[1718858670370,7.49,133.79,133.76,7.476]
[1718858670559,7.49,133.78,133.75,7.4763]
[1718858671671,14.9654,133.78,133.71,21.339]
[1718858671853,7.49,133.78,133.75,7.4765]
[1718858674351,7.49,133.78,133.74,7.477]
[1718858674557,7.49,133.77,133.71,40.0349]
[1718858674870,7.49,133.77,133.71,41.2881]
[1718858675073,0.17,133.76,133.69,18.6997]
[1718858675269,0.34,133.78,133.68,7.49]
[1718858675270,7.49,133.74,133.68,7.49]
[1718858675457,7.49,133.74,133.67,16.3752]
[1718858675796,7.6462,133.76,133.71,7.4788]
[1718858676152,7.4766,133.75,133.71,7.4788]
[1718858676367,7.6463,133.76,133.71,7.4788]
[1718858676766,7.4766,133.75,133.7,7.4793]
[1718858677188,0.17,133.74,133.7,7.4793]
[1718858677385,7.4766,133.75,133.71,7.4788]
[1718858677867,7.8162,133.76,133.71,7.4788]
[1718858678066,0.17,133.75,133.71,7.4788]
[1718858678577,0.17,133.75,133.7,7.4792]
[1718858678873,7.8167,133.75,133.71,7.4788]
[1718858679057,7.49,133.74,133.71,7.4788]
[1718858679960,7.66,133.75,133.71,7.4788]
[1718858680362,7.4755,133.77,133.73,7.4776]
[1718858680577,7.49,133.76,133.72,7.478]
[1718858680962,7.49,133.75,133.71,7.4788]
[1718858681375,7.49,133.75,133.72,7.4781]
[1718858681572,7.49,133.75,133.71,7.4787]
[1718858681859,7.49,133.74,133.7,7.4791]
[1718858682063,7.49,133.74,133.71,7.4785]
[1718858682264,7.49,133.75,133.71,7.4785]
[1718858682882,7.49,133.75,133.72,7.4782]
[1718858683092,7.49,133.75,133.71,7.4787]
[1718858683773,7.49,133.75,133.68,7.48]
[1718858683774,7.4782,133.73,133.68,7.48]
[1718858683974,0.17,133.76,133.67,16.3752]
[1718858684175,7.49,133.75,133.7,7.4793]
[1718858684387,7.49,133.74,133.7,7.4793]
[1718858684768,7.49,133.72,133.64,15.0525]
[1718858684977,7.49,133.71,133.68,7.4805]
[1718858685475,7.4783,133.72,133.67,7.4808]
[1718858685673,7.49,133.71,133.67,7.4808]
[1718858686067,7.49,133.71,133.68,7.4804]
[1718858686264,14.9683,133.72,133.68,7.4804]
[1718858686464,14.9683,133.72,133.67,7.4808]
[1718858687186,8.1578,133.73,133.68,7.4804]
[1718858687391,8.17,133.73,133.69,7.4798]
[1718858687580,15.4779,133.73,133.68,7.4803]
[1718858687968,7.49,133.72,133.68,7.4803]
[1718858688991,0.51,133.73,133.69,7.4799]
[1718858689193,7.49,133.72,133.69,7.4799]
[1718858689369,14.9683,133.72,133.67,7.49]
[1718858689574,14.9683,133.72,133.65,18.7044]
[1718858689575,7.49,133.72,133.68,7.4802]
[1718858689895,7.49,133.72,133.69,7.4797]
[1718858690205,7.49,133.72,133.64,15.0525]
[1718858690375,0.17,133.73,133.66,7.49]
[1718858690376,7.4777,133.73,133.66,7.49]
[1718858690705,7.49,133.72,133.68,7.4802]
[1718858691209,7.49,133.72,133.65,18.7044]
[1718858691407,7.49,133.72,133.65,37.4095]
[1718858691581,15.491,133.74,133.72,7.478]
[1718858691774,15.491,133.74,133.7,7.49]
[1718858692097,15.491,133.74,133.71,7.4785]
[1718858692479,15.491,133.74,133.72,7.478]
[1718858692885,15.491,133.74,133.67,7.49]
[1718858692886,7.66,133.73,133.67,7.49]
[1718858693088,7.49,133.72,133.67,7.49]
[1718858693588,7.49,133.72,133.69,7.4799]
[1718858694984,0.34,133.73,133.69,7.4799]
[1718858695181,15.3078,133.73,133.68,7.4803]
[1718858695379,7.49,133.72,133.69,7.4799]
[1718858696098,7.83,133.73,133.69,7.4799]
[1718858697189,7.49,133.72,133.65,18.7048]
[1718858697389,7.49,133.71,133.65,26.1948]
[1718858697690,7.49,133.71,133.67,7.481]
[1718858699292,7.49,133.72,133.66,7.49]
[1718858699794,7.49,133.72,133.68,7.4802]
[1718858699993,7.49,133.71,133.67,7.4809]
[1718858700299,7.4783,133.72,133.68,7.4802]
[1718858700606,7.648,133.73,133.68,7.4802]
[1718858700801,7.49,133.71,133.68,7.4802]
[1718858700997,7.648,133.73,133.68,7.4802]
[1718858701198,7.49,133.71,133.66,7.49]
[1718858701397,14.9688,133.71,133.67,7.4809]
[1718858701603,7.49,133.72,133.68,7.4805]
[1718858701812,7.49,133.71,133.67,7.4808]
[1718858702193,14.9683,133.72,133.67,7.4808]
[1718858702393,15.491,133.74,133.67,18.7025]
[1718858702715,7.4778,133.73,133.67,18.7025]
[1718858703015,22.981,133.74,133.69,7.49]
[1718858703211,22.981,133.74,133.71,7.4785]
[1718858704103,23.1882,133.77,133.72,7.4782]
[1718858704296,26.0856,133.79,133.7,15.7678]
[1718858704496,26.0856,133.79,133.73,7.49]
[1718858704497,6.0856,133.79,133.73,7.49]
[1718858704704,21.0503,133.79,133.74,7.477]
[1718858705004,6.0856,133.79,133.75,7.4765]
[1718858705205,23.6443,133.8,133.75,7.4765]
[1718858705408,7.49,133.78,133.75,7.4765]
[1718858705604,7.49,133.78,133.74,7.4769]
[1718858706210,16.1703,133.8,133.74,7.49]
[1718858706519,24.0434,133.85,133.8,7.4734]
[1718858706702,24.0434,133.85,133.79,8.98253784]
[1718858706703,16.5721,133.85,133.79,8.98253784]
[1718858706907,7.49,133.84,133.81,7.473]
[1718858707299,7.49,133.84,133.8,9.02104785]
[1718858707508,7.49,133.84,133.81,7.4731]
[1718858707704,16.5721,133.85,133.81,7.4731]
[1718858707909,24.0621,133.85,133.82,7.4725]
[1718858708222,24.0621,133.85,133.81,7.4731]
[1718858708404,14.9616,133.84,133.79,7.4742]
[1718858708605,16.5721,133.85,133.76,7.49]
[1718858708805,14.9637,133.81,133.76,7.4756]
[1718858709027,7.49,133.8,133.77,7.4753]
[1718858709402,7.4723,133.83,133.78,7.4749]
[1718858709606,0.17,133.82,133.78,7.4749]
[1718858709823,0.17,133.82,133.76,7.4755]
[1718858710026,7.4736,133.81,133.75,7.4761]
[1718858710205,13.5056,133.81,133.76,7.4757]
[1718858710618,7.4741,133.8,133.75,7.4764]
[1718858711724,13.5056,133.81,133.76,7.476]
[1718858712931,6.0322,133.81,133.77,7.4751]
[1718858713452,13.5056,133.81,133.76,7.476]
[1718858715936,6.0322,133.81,133.77,7.4755]
[1718858716918,13.5056,133.81,133.76,7.4759]
[1718858717831,6.0322,133.81,133.77,7.4755]
[1718858718631,6.0322,133.81,133.72,22.8438]
[1718858718829,15.1055,133.79,133.75,7.4763]
[1718858719931,15.1055,133.79,133.73,18.6942]
[1718858720238,15.1055,133.79,133.78,7.4749]
[1718858720533,7.4728,133.82,133.77,7.4752]
[1718858721523,7.4728,133.82,133.78,7.4749]
[1718858722036,16.3027,133.83,133.77,18.6883]
[1718858722340,16.3027,133.83,133.79,7.4741]
[1718858722725,16.3027,133.83,133.8,7.4737]
[1718858722921,16.3027,133.83,133.77,18.6883]
[1718858723122,16.3027,133.83,133.79,7.4742]
[1718858723322,23.7749,133.83,133.79,7.4742]
[1718858723537,16.3027,133.83,133.79,7.4742]
[1718858724539,16.3027,133.83,133.77,18.6883]
[1718858724727,6.0114,133.85,133.81,7.4732]
[1718858724911,6.0114,133.85,133.82,7.4727]
[1718858725112,15.2739,133.86,133.82,7.4723]
[1718858725731,7.4712,133.85,133.77,18.6876]
[1718858725933,7.4729,133.82,133.77,7.4752]
[1718858726924,7.4729,133.82,133.78,7.4749]
[1718858727622,7.4729,133.82,133.77,7.4753]
[1718858728022,7.6423,133.83,133.78,7.4747]
[1718858728837,7.4727,133.82,133.78,7.4747]
[1718858729445,0.51,133.84,133.79,7.4741]
[1718858729446,0.34,133.84,133.79,7.4741]
[1718858729738,7.4717,133.84,133.79,7.4741]
[1718858730324,7.4717,133.84,133.8,7.4737]
[1718858730731,8.1512,133.85,133.8,7.4737]
[1718858730925,8.1512,133.85,133.81,7.4732]
[1718858731126,0.34,133.85,133.81,7.4732]
[1718858731326,15.2739,133.86,133.75,59.9819]
[1718858731548,7.52,133.85,133.8,7.52]
[1718858731735,7.52,133.85,133.82,7.4724]
[1718858731936,7.4717,133.84,133.77,22.6942]
[1718858732139,7.52,133.84,133.8,7.4736]
[1718858733950,7.52,133.84,133.81,7.4731]
[1718858734334,15.2739,133.86,133.82,7.4725]
[1718858734529,7.52,133.85,133.82,7.4725]
[1718858734945,15.2739,133.86,133.83,7.4719]
[1718858735131,7.52,133.85,133.83,7.4719]
[1718858735333,22.7939,133.86,133.83,7.4719]
[1718858735539,7.52,133.85,133.82,7.4725]
[1718858735747,7.52,133.85,133.77,41.3828]
[1718858735963,7.52,133.84,133.8,7.4736]
[1718858736447,7.52,133.83,133.8,7.4736]
[1718858736630,7.52,133.82,133.75,56.2432]
[1718858736826,7.52,133.82,133.77,7.52]
[1718858737036,7.52,133.82,133.78,7.4747]
[1718858737355,7.52,133.82,133.79,7.4743]